fUSD/lending_fUSD_20260612
["ID","MTS","AMOUNT","RATE_DAILY","PERIOD"]
[424899610,1781256648000,-153.78923441,0.00014988,5]
[424899612,1781256648000,-31346.43019831,0.00015,2]
[424899616,1781256742000,-3594.6820312,0.00011987,2]
[424899617,1781256763000,-168.67374553,0.00011887,2]
[424899618,1781256816000,-369.03487358,0.00011187,2]
[424899619,1781256869000,-900.0,0.000115,4]
[424899620,1781256923000,-342.86741509,0.00011187,2]
[424899621,1781256976000,-978.15831445,0.000116,5]
[424899622,1781256996000,-295.3656025,0.00011257,2]
[424899624,1781257049000,-250.0,0.00011357,2]
[424899625,1781257103000,-448.26403375,0.00011442,2]
[424899626,1781257156000,-150.0,0.00011173,2]
[424899631,1781257320000,-177.87,0.00011002,2]
[424899634,1781257375000,-699.61444546,0.00010841,2]
[424899635,1781257395000,-237.26555454,0.00010841,2]
[424899636,1781257447000,-831.32520557,0.00010823,2]
[424899637,1781257467000,-429.33479443,0.00010823,2]
[424899638,1781257520000,-166.66,0.00010959,2]
[424899639,1781257574000,-2598.8,0.00010763,2]
[424899640,1781257627000,-287.82,0.00010763,2]
[424899641,1781257680000,-2090.07,0.0001064,2]
[424899642,1781257734000,-1193.18,0.00010601,2]
[424899649,1781257747000,-1031.98477238,0.00011103,2]
[424899647,1781257747000,-166.66,0.00011068,2]
[424899646,1781257747000,-163.66,0.00011043,2]
[424899644,1781257747000,-250.0,0.00010903,2]
[424899645,1781257747000,-200.0,0.00011043,2]
[424899643,1781257747000,-300.0,0.00010903,2]
[424899648,1781257747000,-154.98234113,0.00011078,2]
[424899658,1781257757000,-500.0,0.00011188,2]
[424899664,1781257757000,-500.0,0.00011188,2]
[424899665,1781257757000,-500.0,0.00011188,2]
[424899662,1781257757000,-500.0,0.00011188,2]
[424899661,1781257757000,-500.0,0.00011188,2]
[424899660,1781257757000,-234.37188071,0.00011188,2]
[424899659,1781257757000,-532.95383617,0.00011188,2]
[424899666,1781257757000,-500.0,0.00011188,2]
[424899656,1781257757000,-500.0,0.00011188,2]
[424899655,1781257757000,-171.93780308,0.00011188,2]
[424899654,1781257757000,-177.01021185,0.00011188,2]
[424899653,1781257757000,-616.27963198,0.00011188,2]
[424899652,1781257757000,-500.0,0.00011188,2]
[424899650,1781257757000,-993.67522762,0.00011103,2]
[424899651,1781257757000,-166.66,0.00011178,2]
[424899657,1781257757000,-500.0,0.00011188,2]
[424899668,1781257757000,-500.0,0.00011188,2]
[424899663,1781257757000,-500.0,0.00011188,2]
[424899669,1781257757000,-500.0,0.00011188,2]
[424899667,1781257757000,-266.03607566,0.00011188,2]
[424899683,1781257757000,-500.0,0.00011188,2]
[424899684,1781257757000,-500.0,0.00011188,2]
[424899685,1781257757000,-500.0,0.00011188,2]
[424899682,1781257757000,-500.0,0.00011188,2]
[424899680,1781257757000,-500.0,0.00011188,2]
[424899681,1781257757000,-500.0,0.00011188,2]
[424899678,1781257757000,-500.0,0.00011188,2]
[424899679,1781257757000,-500.0,0.00011188,2]
[424899677,1781257757000,-500.0,0.00011188,2]
[424899675,1781257757000,-500.0,0.00011188,2]
[424899674,1781257757000,-500.0,0.00011188,2]
[424899672,1781257757000,-500.0,0.00011188,2]
[424899686,1781257757000,-500.0,0.00011188,2]
[424899671,1781257757000,-500.0,0.00011188,2]
[424899673,1781257757000,-500.0,0.00011188,2]
[424899670,1781257757000,-500.0,0.00011188,2]
[424899676,1781257757000,-500.0,0.00011188,2]
[424899690,1781257758000,-500.0,0.00011188,2]
[424899688,1781257758000,-500.0,0.00011188,2]
[424899687,1781257758000,-500.0,0.00011188,2]
[424899689,1781257758000,-500.0,0.00011188,2]
[424899691,1781257758000,-500.0,0.00011188,2]
[424899692,1781257758000,-500.0,0.00011188,2]
[424899693,1781257758000,-500.0,0.00011188,2]
[424899696,1781257758000,-500.0,0.00011188,2]
[424899695,1781257758000,-553.66007637,0.00011188,2]
[424899697,1781257758000,-2928.26,0.00011189,2]
[424899698,1781257758000,-166.66,0.00011288,2]
[424899701,1781257758000,-1405.77912841,0.000114,2]
[424899699,1781257758000,-166.66,0.00011397,2]
[424899694,1781257758000,-500.0,0.00011188,2]
[424899700,1781257758000,-2405.92592861,0.000114,2]
[424899702,1781257763000,-760.6368,0.000114,2]
[424899703,1781257768000,-4577.30916727,0.000114,2]
[424899704,1781257806000,-1273.90608146,0.00010717,2]
[424899714,1781257831000,-2455.05181476,0.0001142,2]
[424899717,1781257831000,-500.0,0.00011429,2]
[424899713,1781257831000,-439.34945644,0.000114,2]
[424899709,1781257831000,-726.09391854,0.00010717,2]
[424899711,1781257831000,-234.57184803,0.000114,2]
[424899716,1781257831000,-500.0,0.00011429,2]
[424899715,1781257831000,-150.0,0.00011429,2]
[424899712,1781257831000,-4301.55005499,0.000114,2]
[424899718,1781257831000,-500.0,0.00011429,2]
[424899710,1781257831000,-300.0,0.00011399,2]
[424899720,1781257831000,-500.0,0.00011429,2]
[424899721,1781257831000,-500.0,0.00011429,2]
[424899723,1781257831000,-500.0,0.00011429,2]
[424899724,1781257831000,-500.0,0.00011429,2]
[424899728,1781257831000,-923817.97355277,0.0001143,2]
[424899725,1781257831000,-500.0,0.00011429,2]
[424899727,1781257831000,-250.0,0.00011429,2]
[424899726,1781257831000,-2000.0,0.00011429,2]
[424899722,1781257831000,-500.0,0.00011429,2]
[424899719,1781257831000,-500.0,0.00011429,2]
[424899730,1781257832000,-24539.95477643,0.0001143,2]
[424899729,1781257832000,-27961.76884051,0.0001143,2]
[424899751,1781257837000,-3591.9,0.0001143,2]
[424899750,1781257837000,-8796.78673679,0.0001143,2]
[424899781,1781257838000,-709.0,0.00011595,2]
[424899778,1781257838000,-709.0,0.00011595,2]
[424899779,1781257838000,-709.0,0.00011595,2]
[424899799,1781257838000,-709.0,0.00011595,2]
[424899784,1781257838000,-709.0,0.00011595,2]
[424899785,1781257838000,-709.0,0.00011595,2]
[424899801,1781257838000,-500.0,0.00011595,2]
[424899787,1781257838000,-709.0,0.00011595,2]
[424899803,1781257838000,-500.0,0.00011595,2]
[424899789,1781257838000,-709.0,0.00011595,2]
[424899808,1781257838000,-150.0,0.00011595,2]
[424899796,1781257838000,-709.0,0.00011595,2]
[424899791,1781257838000,-709.0,0.00011595,2]
[424899794,1781257838000,-709.0,0.00011595,2]
[424899806,1781257838000,-285.06994889,0.00011595,2]
[424899776,1781257838000,-709.0,0.00011595,2]
[424899812,1781257838000,-709.0,0.00011595,2]
[424899821,1781257838000,-709.0,0.00011595,2]
[424899814,1781257838000,-185.11145126,0.00011595,2]
[424899810,1781257838000,-150.0,0.00011595,2]
[424899825,1781257838000,-709.0,0.00011595,2]
[424899797,1781257838000,-709.0,0.00011595,2]
[424899782,1781257838000,-709.0,0.00011595,2]
[424899767,1781257838000,-22862.16,0.00011513,2]
[424899783,1781257838000,-709.0,0.00011595,2]
[424899753,1781257838000,-1511291.6160935,0.0001143,2]
[424899818,1781257838000,-709.0,0.00011595,2]
[424899759,1781257838000,-4102.58977509,0.00011513,2]
[424899761,1781257838000,-9999.99,0.00011513,2]
[424899760,1781257838000,-499.99,0.00011513,2]
[424899755,1781257838000,-2455.05181476,0.0001149,2]
[424899756,1781257838000,-2000.0,0.000115,4]
[424899757,1781257838000,-1500000.0,0.000115,2]
[424899762,1781257838000,-9999.99,0.00011513,2]
[424899763,1781257838000,-150.99,0.00011513,2]
[424899780,1781257838000,-709.0,0.00011595,2]
[424899770,1781257838000,-9999.99,0.00011513,2]
[424899768,1781257838000,-999.99,0.00011513,2]
[424899764,1781257838000,-299.99,0.00011513,2]
[424899769,1781257838000,-302.94,0.00011513,2]
[424899771,1781257838000,-3071.1028,0.00011529,2]
[424899766,1781257838000,-435.84,0.00011513,2]
[424899772,1781257838000,-2960.4366,0.00011529,2]
[424899773,1781257838000,-164.81,0.00011533,2]
[424899774,1781257838000,-150.0,0.00011595,2]
[424899775,1781257838000,-166.72751158,0.00011595,2]
[424899777,1781257838000,-709.0,0.00011595,2]
[424899765,1781257838000,-14212.27,0.00011513,2]
[424899823,1781257838000,-709.0,0.00011595,2]
[424899758,1781257838000,-166.66,0.00011507,2]
[424899827,1781257838000,-715.54732619,0.00011595,2]
[424899866,1781257838000,-500.0,0.00011613,2]
[424899864,1781257838000,-500.0,0.00011613,2]
[424899868,1781257838000,-500.0,0.00011613,2]
[424899865,1781257838000,-500.0,0.00011613,2]
[424899869,1781257838000,-500.0,0.00011613,2]
[424899867,1781257838000,-500.0,0.00011613,2]
[424899871,1781257838000,-387.05378598,0.00011613,2]
[424899872,1781257838000,-500.0,0.00011628,2]
[424899873,1781257838000,-11279.84699865,0.00011644,2]
[424899875,1781257838000,-32707.87555076,0.000117,2]
[424899870,1781257838000,-448.29391775,0.00011613,2]
[424899877,1781257838000,-500.0,0.00011712,3]
[424899880,1781257838000,-298.03737678,0.00011712,3]
[424899876,1781257838000,-6100.0,0.000117,4]
[424899879,1781257838000,-500.0,0.00011712,3]
[424899881,1781257838000,-500.0,0.00011712,3]
[424899882,1781257838000,-500.0,0.00011712,3]
[424899884,1781257838000,-374.13126552,0.00011712,3]
[424899883,1781257838000,-500.0,0.00011712,3]
[424899885,1781257838000,-155.42420941,0.0001177,2]
[424899886,1781257838000,-8200.0,0.000118,4]
[424899816,1781257838000,-709.0,0.00011595,2]
[424899878,1781257838000,-500.0,0.00011712,3]
[424899862,1781257838000,-500.0,0.00011613,2]
[424899874,1781257838000,-152.0,0.00011648,7]
[424899861,1781257838000,-500.0,0.00011613,2]
[424899863,1781257838000,-500.0,0.00011613,2]
[424899832,1781257838000,-4100.0,0.000116,4]
[424899842,1781257838000,-500.0,0.00011613,2]
[424899846,1781257838000,-500.0,0.00011613,2]
[424899836,1781257838000,-500.0,0.00011613,2]
[424899839,1781257838000,-500.0,0.00011613,2]
[424899848,1781257838000,-500.0,0.00011613,2]
[424899834,1781257838000,-500.0,0.00011613,2]
[424899845,1781257838000,-500.0,0.00011613,2]
[424899841,1781257838000,-207.59558955,0.00011613,2]
[424899849,1781257838000,-500.0,0.00011613,2]
[424899829,1781257838000,-500.0,0.00011599,2]
[424899850,1781257838000,-500.0,0.00011613,2]
[424899851,1781257838000,-500.0,0.00011613,2]
[424899854,1781257838000,-500.0,0.00011613,2]
[424899853,1781257838000,-500.0,0.00011613,2]
[424899859,1781257838000,-500.0,0.00011613,2]
[424899857,1781257838000,-500.0,0.00011613,2]
[424899860,1781257838000,-500.0,0.00011613,2]
[424899856,1781257838000,-500.0,0.00011613,2]
[424899852,1781257838000,-500.0,0.00011613,2]
[424899855,1781257838000,-500.0,0.00011613,2]
[424899858,1781257838000,-500.0,0.00011613,2]
[424899922,1781257839000,-152.25,0.00012329,2]
[424899916,1781257839000,-150.0,0.00012083,2]
[424899915,1781257839000,-2000.0,0.00012056,2]
[424899918,1781257839000,-150.0,0.00012136,2]
[424899919,1781257839000,-500.0,0.00012147,2]
[424899917,1781257839000,-11279.84699865,0.00012133,2]
[424899920,1781257839000,-32707.87555069,0.00012257,2]
[424899914,1781257839000,-150.0,0.00012034,2]
[424899921,1781257839000,-164.81,0.00012294,2]
[424899923,1781257839000,-11279.84699865,0.00012377,2]
[424899924,1781257839000,-500.0,0.00012421,2]
[424899927,1781257839000,-11279.84699865,0.00012621,2]
[424899925,1781257839000,-255.0,0.00012492,2]
[424899928,1781257839000,-164.81,0.00012675,2]
[424899929,1781257839000,-465.71051319,0.00012695,2]
[424899930,1781257839000,-32707.87555069,0.00012815,2]
[424899931,1781257839000,-177.87,0.00012836,2]
[424899932,1781257839000,-11279.84699865,0.00012865,2]
[424899933,1781257839000,-276.03,0.00012877,2]
[424899934,1781257839000,-175.22982642,0.00012893,2]
[424899935,1781257839000,-150.13333076,0.00012893,2]
[424899912,1781257839000,-500.0,0.00011993,2]
[424899926,1781257839000,-32707.87555069,0.00012536,2]
[424899908,1781257839000,-500.0,0.00011986,2]
[424899887,1781257839000,-300.0,0.00011839,2]
[424899913,1781257839000,-160.0,0.00012013,2]
[424899938,1781257839000,-164.81,0.00013056,2]
[424899888,1781257839000,-250.0,0.00011839,2]
[424899889,1781257839000,-319.7,0.00011855,2]
[424899891,1781257839000,-150.0,0.00011869,2]
[424899890,1781257839000,-150.0,0.00011869,2]
[424899892,1781257839000,-500.0,0.00011873,2]
[424899893,1781257839000,-1517.431472,0.00011887,2]
[424899895,1781257839000,-11279.84699865,0.00011888,2]
[424899902,1781257839000,-42879.01286272,0.00011986,2]
[424899894,1781257839000,-1068.84403181,0.00011887,2]
[424899900,1781257839000,-1061.59248296,0.00011986,3]
[424899901,1781257839000,-1061.59248296,0.00011986,3]
[424899896,1781257839000,-10200.0,0.000119,4]
[424899897,1781257839000,-164.81,0.00011914,2]
[424899899,1781257839000,-32707.87555069,0.00011979,2]
[424899898,1781257839000,-1193.18,0.00011926,2]
[424899903,1781257839000,-500.0,0.00011986,2]
[424899905,1781257839000,-500.0,0.00011986,2]
[424899907,1781257839000,-500.0,0.00011986,2]
[424899910,1781257839000,-150.0,0.00011987,2]
[424899906,1781257839000,-500.0,0.00011986,2]
[424899904,1781257839000,-500.0,0.00011986,2]
[424899911,1781257839000,-250.0,0.00011987,2]
[424899909,1781257839000,-500.0,0.00011986,2]
[424899936,1781257839000,-157.14213509,0.00012893,2]
[424899937,1781257839000,-4337.25795117,0.00012969,2]
[424899991,1781257839000,-150.0,0.00013603,2]
[424899968,1781257839000,-150.0,0.00013488,2]
[424899969,1781257839000,-150.0,0.00013488,2]
[424899970,1781257839000,-150.0,0.00013488,2]
[424899976,1781257839000,-194.393953,0.00013491,2]
[424899971,1781257839000,-152.29573647,0.00013488,2]
[424899973,1781257839000,-150.0,0.00013488,2]
[424899975,1781257839000,-160.0,0.00013491,2]
[424899972,1781257839000,-150.0,0.00013488,2]
[424899974,1781257839000,-150.0,0.00013488,2]
[424899977,1781257839000,-228.787906,0.00013491,2]
[424899980,1781257839000,-294.331344,0.00013491,2]
[424899982,1781257839000,-174.457175,0.00013511,2]
[424899978,1781257839000,-160.0,0.00013491,2]
[424899981,1781257839000,-160.0,0.00013511,2]
[424899986,1781257839000,-160.0,0.00013558,2]
[424899987,1781257839000,-184.247404,0.00013558,2]
[424899985,1781257839000,-150.0,0.00013557,2]
[424899984,1781257839000,-150.0,0.00013523,2]
[424899983,1781257839000,-188.91435,0.00013511,2]
[424899988,1781257839000,-208.494808,0.00013558,2]
[424899990,1781257839000,-11279.84699865,0.00013598,2]
[424899989,1781257839000,-150.0,0.00013592,2]
[424899941,1781257839000,-1193.18,0.00013251,2]
[424899967,1781257839000,-150.0,0.00013488,2]
[424899966,1781257839000,-150.00000001,0.00013488,2]
[424899979,1781257839000,-227.165672,0.00013491,2]
[424899964,1781257839000,-150.0,0.00013488,2]
[424899965,1781257839000,-150.0,0.00013488,2]
[424899939,1781257839000,-32707.87555069,0.00013093,2]
[424899940,1781257839000,-11279.84699865,0.0001311,2]
[424899942,1781257839000,-11279.84699865,0.00013354,2]
[424899944,1781257839000,-248.50117,0.00013378,2]
[424899946,1781257839000,-160.0,0.00013378,2]
[424899945,1781257839000,-202.945249,0.00013378,2]
[424899947,1781257839000,-170.399228,0.00013378,2]
[424899948,1781257839000,-180.798457,0.00013378,2]
[424899949,1781257839000,-1068.84403181,0.0001338,2]
[424899953,1781257839000,-29422.87430566,0.00013386,2]
[424899950,1781257839000,-500.0,0.00013386,2]
[424899943,1781257839000,-32707.87555069,0.00013372,2]
[424899952,1781257839000,-11149.18450486,0.00013386,2]
[424899955,1781257839000,-77647.43080799,0.00013386,2]
[424899956,1781257839000,-2000.0,0.00013396,2]
[424899958,1781257839000,-186.8,0.00013409,2]
[424899957,1781257839000,-151.0,0.00013409,2]
[424899959,1781257839000,-186.8,0.00013409,2]
[424899960,1781257839000,-160.0,0.00013423,2]
[424899963,1781257839000,-164.81,0.00013437,2]
[424899961,1781257839000,-274.348504,0.00013423,2]
[424899962,1781257839000,-388.697008,0.00013423,2]
[424899954,1781257839000,-51905.4378799,0.00013386,2]
[424900018,1781257840000,-500.0,0.00013697,2]
[424900023,1781257840000,-500.0,0.00013697,2]
[424900032,1781257840000,-500.0,0.00013697,2]
[424900026,1781257840000,-500.0,0.00013697,2]
[424900024,1781257840000,-500.0,0.00013697,2]
[424900021,1781257840000,-500.0,0.00013697,2]
[424900030,1781257840000,-500.0,0.00013697,2]
[424900029,1781257840000,-500.0,0.00013697,2]
[424900022,1781257840000,-500.0,0.00013697,2]
[424900028,1781257840000,-500.0,0.00013697,2]
[424900025,1781257840000,-500.0,0.00013697,2]
[424900031,1781257840000,-500.0,0.00013697,2]
[424900035,1781257840000,-500.0,0.00013697,2]
[424900034,1781257840000,-500.0,0.00013697,2]
[424900033,1781257840000,-500.0,0.00013697,2]
[424900037,1781257840000,-500.0,0.00013697,2]
[424900036,1781257840000,-500.0,0.00013697,2]
[424900040,1781257840000,-500.0,0.00013697,2]
[424900042,1781257840000,-500.0,0.00013697,2]
[424900038,1781257840000,-500.0,0.00013697,2]
[424900041,1781257840000,-500.0,0.00013697,2]
[424900039,1781257840000,-500.0,0.00013697,2]
[424900043,1781257840000,-500.0,0.00013697,2]
[424900027,1781257840000,-500.0,0.00013697,2]
[424900020,1781257840000,-500.0,0.00013697,2]
[424900044,1781257840000,-500.0,0.00013697,2]
[424900017,1781257840000,-500.0,0.00013697,2]
[424899992,1781257840000,-201.02035911,0.00013617,2]
[424899995,1781257840000,-150.0,0.00013617,2]
[424899999,1781257840000,-150.0,0.00013638,2]
[424899993,1781257840000,-175.51017956,0.00013617,2]
[424899998,1781257840000,-150.0,0.00013638,2]
[424899997,1781257840000,-150.0,0.00013627,2]
[424900000,1781257840000,-32707.87555069,0.00013651,2]
[424900001,1781257840000,-150.0,0.00013654,2]
[424900002,1781257840000,-433.0,0.00013658,2]
[424900005,1781257840000,-500.0,0.00013697,2]
[424900004,1781257840000,-150.0,0.00013697,2]
[424900003,1781257840000,-150.0,0.00013662,2]
[424900008,1781257840000,-500.0,0.00013697,2]
[424900007,1781257840000,-500.0,0.00013697,2]
[424900006,1781257840000,-500.0,0.00013697,2]
[424900009,1781257840000,-500.0,0.00013697,2]
[424900010,1781257840000,-500.0,0.00013697,2]
[424900011,1781257840000,-500.0,0.00013697,2]
[424900013,1781257840000,-500.0,0.00013697,2]
[424900014,1781257840000,-500.0,0.00013697,2]
[424900015,1781257840000,-500.0,0.00013697,2]
[424900012,1781257840000,-500.0,0.00013697,2]
[424900019,1781257840000,-500.0,0.00013697,2]
[424900016,1781257840000,-500.0,0.00013697,2]
[424900049,1781257840000,-500.0,0.00013697,2]
[424900100,1781257840000,-329.2463426,0.00013698,2]
[424900046,1781257840000,-500.0,0.00013697,2]
[424900075,1781257840000,-500.0,0.00013697,2]
[424900079,1781257840000,-500.0,0.00013698,2]
[424900077,1781257840000,-500.0,0.00013698,2]
[424900076,1781257840000,-500.0,0.00013698,2]
[424900083,1781257840000,-500.0,0.00013698,2]
[424900078,1781257840000,-500.0,0.00013698,2]
[424900080,1781257840000,-500.0,0.00013698,2]
[424900081,1781257840000,-500.0,0.00013698,2]
[424900084,1781257840000,-500.0,0.00013698,2]
[424900085,1781257840000,-500.0,0.00013698,2]
[424900082,1781257840000,-502.53527372,0.00013698,2]
[424900097,1781257840000,-500.0,0.00013698,2]
[424900087,1781257840000,-500.0,0.00013698,2]
[424900086,1781257840000,-500.0,0.00013698,2]
[424900088,1781257840000,-500.0,0.00013698,2]
[424900092,1781257840000,-500.0,0.00013698,2]
[424900094,1781257840000,-500.0,0.00013698,2]
[424900091,1781257840000,-500.0,0.00013698,2]
[424900090,1781257840000,-500.0,0.00013698,2]
[424900089,1781257840000,-500.0,0.00013698,2]
[424900096,1781257840000,-500.0,0.00013698,2]
[424900051,1781257840000,-500.0,0.00013697,2]
[424900099,1781257840000,-500.0,0.00013698,2]
[424900072,1781257840000,-500.0,0.00013697,2]
[424900071,1781257840000,-500.0,0.00013697,2]
[424900098,1781257840000,-500.0,0.00013698,2]
[424900073,1781257840000,-500.0,0.00013697,2]
[424900074,1781257840000,-500.0,0.00013697,2]
[424900052,1781257840000,-500.0,0.00013697,2]
[424900045,1781257840000,-500.0,0.00013697,2]
[424900050,1781257840000,-500.0,0.00013697,2]
[424900048,1781257840000,-500.0,0.00013697,2]
[424900053,1781257840000,-500.0,0.00013697,2]
[424900054,1781257840000,-500.0,0.00013697,2]
[424900056,1781257840000,-500.0,0.00013697,2]
[424900057,1781257840000,-500.0,0.00013697,2]
[424900055,1781257840000,-500.0,0.00013697,2]
[424900058,1781257840000,-500.0,0.00013697,2]
[424900047,1781257840000,-500.0,0.00013697,2]
[424900059,1781257840000,-500.0,0.00013697,2]
[424900062,1781257840000,-500.0,0.00013697,2]
[424900061,1781257840000,-500.0,0.00013697,2]
[424900063,1781257840000,-500.0,0.00013697,2]
[424900064,1781257840000,-500.0,0.00013697,2]
[424900065,1781257840000,-500.0,0.00013697,2]
[424900066,1781257840000,-500.0,0.00013697,2]
[424900068,1781257840000,-500.0,0.00013697,2]
[424900069,1781257840000,-500.0,0.00013697,2]
[424900070,1781257840000,-500.0,0.00013697,2]
[424900067,1781257840000,-500.0,0.00013697,2]
[424900060,1781257840000,-500.0,0.00013697,2]
[424900133,1781257841000,-500.0,0.00013698,2]
[424900135,1781257841000,-500.0,0.00013698,2]
[424900134,1781257841000,-500.0,0.00013698,2]
[424900127,1781257841000,-500.0,0.00013698,2]
[424900130,1781257841000,-500.0,0.00013698,2]
[424900131,1781257841000,-500.0,0.00013698,2]
[424900129,1781257841000,-500.0,0.00013698,2]
[424900148,1781257841000,-298.73640361,0.00013698,2]
[424900132,1781257841000,-500.0,0.00013698,2]
[424900139,1781257841000,-500.0,0.00013698,2]
[424900140,1781257841000,-500.0,0.00013698,2]
[424900138,1781257841000,-500.0,0.00013698,2]
[424900136,1781257841000,-500.0,0.00013698,2]
[424900142,1781257841000,-158.66,0.00013698,2]
[424900146,1781257841000,-500.0,0.00013698,2]
[424900141,1781257841000,-500.0,0.00013698,2]
[424900145,1781257841000,-500.0,0.00013698,2]
[424900143,1781257841000,-500.0,0.00013698,2]
[424900144,1781257841000,-500.0,0.00013698,2]
[424900149,1781257841000,-360.35654585,0.00013698,2]
[424900126,1781257841000,-500.0,0.00013698,2]
[424900137,1781257841000,-500.0,0.00013698,2]
[424900123,1781257841000,-500.0,0.00013698,2]
[424900111,1781257841000,-500.0,0.00013698,2]
[424900125,1781257841000,-500.0,0.00013698,2]
[424900103,1781257841000,-500.0,0.00013698,2]
[424900101,1781257841000,-500.0,0.00013698,2]
[424900105,1781257841000,-500.0,0.00013698,2]
[424900102,1781257841000,-500.0,0.00013698,2]
[424900104,1781257841000,-500.0,0.00013698,2]
[424900106,1781257841000,-500.0,0.00013698,2]
[424900107,1781257841000,-500.0,0.00013698,2]
[424900108,1781257841000,-500.0,0.00013698,2]
[424900109,1781257841000,-500.0,0.00013698,2]
[424900114,1781257841000,-277.3797404,0.00013698,2]
[424900115,1781257841000,-500.0,0.00013698,2]
[424900112,1781257841000,-500.0,0.00013698,2]
[424900110,1781257841000,-500.0,0.00013698,2]
[424900113,1781257841000,-500.0,0.00013698,2]
[424900118,1781257841000,-500.0,0.00013698,2]
[424900117,1781257841000,-500.0,0.00013698,2]
[424900116,1781257841000,-500.0,0.00013698,2]
[424900120,1781257841000,-350.9778081,0.00013698,2]
[424900119,1781257841000,-500.0,0.00013698,2]
[424900121,1781257841000,-500.0,0.00013698,2]
[424900122,1781257841000,-500.0,0.00013698,2]
[424900128,1781257841000,-500.0,0.00013698,2]
[424900147,1781257841000,-500.0,0.00013698,2]
[424900173,1781257841000,-1395.07763099,0.00013698,2]
[424900151,1781257841000,-1395.07,0.00013698,2]
[424900184,1781257841000,-500.0,0.00013698,2]
[424900178,1781257841000,-500.0,0.00013698,2]
[424900182,1781257841000,-500.0,0.00013698,2]
[424900180,1781257841000,-500.0,0.00013698,2]
[424900181,1781257841000,-500.0,0.00013698,2]
[424900185,1781257841000,-500.0,0.00013698,2]
[424900187,1781257841000,-500.0,0.00013698,2]
[424900188,1781257841000,-500.0,0.00013698,2]
[424900186,1781257841000,-500.0,0.00013698,2]
[424900189,1781257841000,-500.0,0.00013698,2]
[424900196,1781257841000,-655.84,0.00013698,2]
[424900191,1781257841000,-323.84,0.00013698,2]
[424900192,1781257841000,-655.84,0.00013698,2]
[424900190,1781257841000,-500.0,0.00013698,2]
[424900194,1781257841000,-655.84,0.00013698,2]
[424900193,1781257841000,-655.84,0.00013698,2]
[424900195,1781257841000,-655.84,0.00013698,2]
[424900197,1781257841000,-655.84,0.00013698,2]
[424900199,1781257841000,-655.84,0.00013698,2]
[424900198,1781257841000,-655.84,0.00013698,2]
[424900150,1781257841000,-1395.07,0.00013698,2]
[424900183,1781257841000,-500.0,0.00013698,2]
[424900179,1781257841000,-500.0,0.00013698,2]
[424900176,1781257841000,-500.0,0.00013698,2]
[424900156,1781257841000,-1395.07,0.00013698,2]
[424900152,1781257841000,-1395.07,0.00013698,2]
[424900160,1781257841000,-1395.07,0.00013698,2]
[424900153,1781257841000,-1395.07,0.00013698,2]
[424900154,1781257841000,-1395.07,0.00013698,2]
[424900158,1781257841000,-1395.07,0.00013698,2]
[424900157,1781257841000,-1395.07,0.00013698,2]
[424900177,1781257841000,-500.0,0.00013698,2]
[424900159,1781257841000,-1395.07,0.00013698,2]